bitfinex-derivatives/quotes_SOLF0:USTF0_20220104
["timestamp","ask_amount","ask_price","bid_price","bid_amount"]
[1641324151834,13.47234534,168.78,168.69,1.26240386]
[1641324152634,13.47234534,168.78,168.67,7.41424856]
[1641324153937,19.78834534,168.78,168.67,7.41424856]
[1641324154739,2.91445793,168.77,168.67,7.41424856]
[1641324156239,4.137,168.77,168.67,7.41424856]
[1641324156642,7.137,168.77,168.67,7.41424856]
[1641324157241,2.91445793,168.76,168.67,7.41424856]
[1641324157942,27.66479,168.74,168.67,7.41424856]
[1641324159345,27.66479,168.74,168.67,10.41424856]
[1641324159544,27.66479,168.74,168.68,3.0]
[1641324159945,27.66479,168.79,168.68,3.0]
[1641324160345,27.66479,168.79,168.69,34.6642217]
[1641324160745,27.66479,168.79,168.69,37.6642217]
[1641324161146,2.91453969,168.78,168.69,3.0]
[1641324161348,2.91453969,168.78,168.68,7.41424856]
[1641324161546,2.91453969,168.78,168.7,3.0]
[1641324161745,2.91453969,168.78,168.69,3.0]
[1641324162146,2.91453969,168.78,168.7,3.0]
[1641324162347,2.91453969,168.78,168.69,27.66479]
[1641324162748,2.91453969,168.78,168.72,12.53122965]
[1641324164450,12.53122965,168.77,168.7,1.26240386]
[1641324165251,12.53122965,168.76,168.68,12.53122965]
[1641324165855,12.53122965,168.75,168.67,19.94554245]
[1641324166854,15.44576934,168.75,168.67,13.79363351]
[1641324167054,12.53122965,168.74,168.67,1.26240386]
[1641324167656,12.53122965,168.74,168.67,19.94554214]
[1641324168457,15.44576934,168.75,168.67,19.94554214]
[1641324169260,12.53122965,168.74,168.67,19.94554214]
[1641324170763,2.91453969,168.75,168.68,12.53122965]
[1641324171563,15.44576934,168.75,168.68,12.53122965]
[1641324172165,2.91453969,168.75,168.68,12.53122965]
[1641324173769,2.91453969,168.75,168.69,12.53122965]
[1641324176175,27.66479,168.76,168.69,12.53122965]
[1641324176374,27.66479,168.73,168.67,1.26240386]
[1641324176975,27.66479,168.73,168.65,1.26240386]
[1641324177174,30.66479,168.73,168.65,1.26240386]
[1641324177374,3.0,168.71,168.65,1.26240386]
[1641324177574,4.756,168.71,168.65,3.86e-06]
[1641324177779,7.756,168.71,168.65,3.86e-06]
[1641324177976,4.756,168.71,168.6,33.40181784]
[1641324178176,7.756,168.71,168.6,12.49091169]
[1641324178377,27.66479,168.66,168.6,12.49091169]
[1641324178577,32.54479,168.66,168.6,12.49091169]
[1641324178880,32.54479,168.66,168.56,98.45491784]
[1641324179079,32.54479,168.66,168.57,3.0]
[1641324179277,32.54479,168.66,168.58,3.0]
[1641324179778,32.54479,168.66,168.59,3.0]
[1641324179978,65.3644,168.7,168.59,3.0]
[1641324180380,27.66479,168.69,168.59,30.66479]
[1641324180780,65.3644,168.7,168.59,27.66479]
[1641324181781,65.3644,168.7,168.56,65.0531]
[1641324181981,68.3644,168.7,168.55,42.28181784]
[1641324182183,10.56894411,168.69,168.6,6.14983722]
[1641324182384,27.66479,168.62,168.6,6.14983722]
[1641324182582,34.47379,168.62,168.6,6.14983722]
[1641324183587,6.809,168.62,168.55,3.0]
[1641324183793,6.809,168.62,168.54,3.0]
[1641324184688,6.809,168.62,168.54,27.66479]
[1641324185287,6.809,168.62,168.54,61.06660784]
[1641324185686,6.809,168.62,168.54,64.06660784]
[1641324186087,6.809,168.62,168.55,6.14983722]
[1641324186787,27.66479,168.64,168.55,6.14983722]
[1641324186989,27.66479,168.67,168.55,6.14983722]
[1641324187787,10.57119153,168.66,168.55,6.14983722]
[1641324188387,10.57119153,168.66,168.55,9.14983722]
[1641324188589,27.66479,168.67,168.56,3.0]
[1641324188787,27.66479,168.67,168.56,6.457]
[1641324189187,27.66479,168.67,168.56,9.457]
[1641324189387,27.66479,168.67,168.56,42.85881784]
[1641324190187,27.66479,168.67,168.56,39.85881784]
[1641324190890,27.66479,168.67,168.57,33.40181784]
[1641324191690,27.66479,168.67,168.57,39.63781784]
[1641324193194,27.66479,168.67,168.57,33.40181784]
[1641324193395,27.66479,168.67,168.56,33.40181784]
[1641324193795,27.66479,168.67,168.56,36.40181784]
[1641324193995,27.66479,168.67,168.56,33.40181784]
[1641324194195,27.66479,168.67,168.55,42.55165506]
[1641324194898,27.66479,168.67,168.56,33.40181784]
[1641324195598,27.66479,168.67,168.57,3.0]
[1641324195799,27.66479,168.67,168.56,33.40181784]
[1641324196899,27.66479,168.67,168.57,27.66479]
[1641324198000,27.66479,168.67,168.58,6.14983722]
[1641324198200,27.66479,168.67,168.58,9.14983722]
[1641324198401,27.66479,168.69,168.59,3.0]
[1641324198601,27.66479,168.69,168.6,3.0]
[1641324198801,33.40181784,168.7,168.61,27.66479]
[1641324199001,33.40181784,168.7,168.61,34.41179]
[1641324199203,33.40181784,168.7,168.63,3.0]
[1641324199404,33.40181784,168.7,168.64,3.0]
[1641324199605,10.56630986,168.71,168.65,7.0]
[1641324199806,10.56630986,168.71,168.67,3.0]
[1641324200505,10.56630986,168.71,168.66,3.0]
[1641324200710,33.40181784,168.73,168.66,3.0]
[1641324200907,61.06660784,168.78,168.66,30.66479]
[1641324201110,61.06660784,168.78,168.67,66.104]
[1641324201709,43.96513346,168.77,168.67,66.104]
[1641324201911,43.96513346,168.77,168.67,59.4188165]
[1641324202410,10.56331562,168.77,168.69,3.0]
[1641324202609,10.56331562,168.77,168.69,8.123]
[1641324202810,10.56331562,168.77,168.71,27.66479]
[1641324203509,61.06660784,168.78,168.73,4.17769368]
[1641324203709,27.66479,168.78,168.73,4.17769368]
[1641324204913,10.56256175,168.77,168.72,4.17769368]
[1641324205612,10.56256175,168.77,168.73,4.17769368]
[1641324206414,27.66479,168.78,168.73,4.17769368]
[1641324208217,12.53338997,168.77,168.73,4.17769368]
[1641324208819,12.53338997,168.76,168.72,4.17769368]
[1641324210120,12.53338997,168.75,168.72,4.17769368]
[1641324210720,12.53338997,168.76,168.72,4.17769368]
[1641324212028,12.53338997,168.73,168.69,4.17769368]
[1641324214927,12.53338997,168.73,168.69,31.84248368]
[1641324217029,12.53338997,168.73,168.69,4.17769368]
[1641324217728,12.53338997,168.7,168.66,4.17769368]
[1641324217928,18.13638997,168.7,168.66,4.17769368]
[1641324218729,15.45053922,168.69,168.65,4.17769368]
[1641324219429,3.922e-05,168.69,168.65,4.17769368]
[1641324219629,3.922e-05,168.7,168.66,8.17769368]
[1641324219830,3.922e-05,168.7,168.66,12.31969368]
[1641324220734,33.40181784,168.76,168.68,4.17769368]
[1641324221131,33.40181784,168.76,168.69,7.0]
[1641324221332,33.40181784,168.76,168.69,4.0]
[1641324221531,10.56082668,168.77,168.7,4.17769368]
[1641324221931,3.0,168.76,168.7,4.17769368]
[1641324222131,8.522,168.76,168.7,4.17769368]
[1641324222432,5.522,168.76,168.7,4.17769368]
[1641324222631,5.522,168.76,168.69,4.17769368]
[1641324223131,5.522,168.76,168.69,31.84248368]
[1641324223334,38.92381784,168.76,168.69,31.84248368]
[1641324223531,41.92381784,168.76,168.69,4.17769368]
[1641324223733,38.92381784,168.76,168.69,4.17769368]
[1641324223931,41.92381784,168.76,168.69,4.17769368]
[1641324224932,33.40181784,168.73,168.65,4.17769368]
[1641324225133,27.66479,168.72,168.65,4.17769368]
[1641324226133,27.66479,168.72,168.66,4.17769368]
[1641324226937,27.66479,168.72,168.67,4.17769368]
[1641324228438,36.40181784,168.75,168.67,4.17769368]
[1641324228638,10.56234954,168.71,168.66,4.17769368]
[1641324229638,61.06660784,168.74,168.67,4.17769368]
[1641324229842,27.66479,168.74,168.67,4.17769368]
[1641324230540,27.66479,168.74,168.69,4.17769368]
[1641324231339,33.40181784,168.77,168.69,4.17769368]
[1641324231738,33.40181784,168.76,168.69,4.17769368]
[1641324232940,33.40181784,168.76,168.67,91.57569]
[1641324232941,10.55761416,168.77,168.71,4.17769368]
[1641324234141,43.959432,168.77,168.7,4.17769368]
[1641324235342,10.55761416,168.77,168.7,4.17769368]
[1641324235944,33.40181784,168.76,168.68,4.17769368]
[1641324236542,4.17334803,168.69,168.67,95.75338368]
[1641324237542,4.17334803,168.69,168.67,31.84248368]
[1641324238142,4.803e-05,168.69,168.67,31.84248368]
[1641324239143,4.803e-05,168.69,168.67,27.66479]
[1641324241146,10.55761416,168.77,168.67,27.66479]
[1641324241349,10.55761416,168.77,168.68,7.0]
[1641324241546,10.55761416,168.77,168.7,3.0]
[1641324242646,10.55761416,168.77,168.68,13.15326413]
[1641324242847,10.55761416,168.77,168.68,10.15326413]
[1641324243245,10.55761416,168.77,168.7,27.66479]
[1641324244452,43.959432,168.77,168.7,27.66479]
[1641324244847,46.959432,168.77,168.7,27.66479]
[1641324245046,46.959432,168.77,168.67,27.66479]
[1641324245446,43.959432,168.77,168.67,27.66479]
[1641324246147,33.40181784,168.76,168.67,27.66479]
[1641324246751,46.959432,168.77,168.67,27.66479]
[1641324248758,43.959432,168.77,168.67,27.66479]
[1641324248955,33.40181784,168.76,168.67,27.66479]
[1641324250459,33.40181784,168.76,168.68,7.0]
[1641324250660,33.40181784,168.76,168.68,12.967]
[1641324251060,10.55761416,168.77,168.68,12.967]
[1641324251061,12.53338679,168.74,168.68,12.967]
[1641324251263,12.53338679,168.74,168.7,27.66479]
[1641324251763,12.53338679,168.75,168.7,31.66479]
[1641324253165,12.53338679,168.76,168.7,31.66479]
[1641324254266,12.53338679,168.75,168.7,31.66479]
[1641324254867,12.53338679,168.76,168.7,31.66479]
[1641324256468,12.53338679,168.77,168.7,31.66479]
[1641324258869,12.53338679,168.76,168.7,31.66479]
[1641324259680,12.53338679,168.76,168.71,1.26337582]
[1641324261876,12.53338679,168.74,168.68,1.26337582]
[1641324262675,12.53304459,168.75,168.67,40.19817679]
[1641324263376,13.47160174,168.77,168.68,1.26330251]
[1641324264276,12.53283507,168.75,168.67,40.19817679]
[1641324265076,12.53405888,168.73,168.68,1.26324458]
[1641324265477,12.53405888,168.73,168.7,27.66479]
[1641324265681,12.53356702,168.74,168.7,27.66479]
[1641324266278,12.53356702,168.74,168.71,1.26330951]
[1641324266878,12.53356702,168.74,168.71,5.92430951]
[1641324267077,33.40181784,168.78,168.71,4.661]
[1641324267678,12.53202795,168.76,168.72,5.26337997]
[1641324268581,12.53202795,168.76,168.72,8.26337997]
[1641324268879,46.87341958,168.8,168.72,7.0]
[1641324269081,12.53124061,168.77,168.73,1.26343246]
[1641324269481,12.53124061,168.77,168.75,27.66479]
[1641324269984,13.47160174,168.8,168.75,27.66479]
[1641324270788,12.53083979,168.78,168.75,37.67279]
[1641324270985,12.53083979,168.78,168.75,30.98967545]
[1641324271587,12.53083979,168.8,168.76,1.26351861]
[1641324271985,3.979e-05,168.8,168.76,1.26351861]
[1641324272487,13.47160174,168.82,168.76,1.26351861]
[1641324272686,13.47160174,168.85,168.76,7.42042797]
[1641324273487,13.47160174,168.85,168.76,1.26351861]
[1641324273788,46.87341958,168.85,168.76,1.26351861]
[1641324274389,33.40181784,168.84,168.76,1.26351861]
[1641324274591,33.40181784,168.84,168.78,7.0]
[1641324274790,33.40181784,168.84,168.79,3.0]
[1641324274994,33.40181784,168.84,168.78,12.056]
[1641324275191,33.40181784,168.84,168.78,9.056]
[1641324275391,33.40181784,168.84,168.78,5.056]
[1641324275591,13.47160174,168.87,168.8,27.66479]
[1641324275991,13.47160174,168.87,168.79,1.26351861]
[1641324276791,46.87341958,168.87,168.79,1.26351861]
[1641324277594,3.0,168.86,168.76,1.26351861]
[1641324278393,2.91398758,168.85,168.76,1.26351861]
[1641324279193,36.31580542,168.85,168.76,1.26351861]
[1641324280093,3.0,168.84,168.76,1.26351861]
[1641324280294,42.05280542,168.85,168.76,1.26351861]
[1641324280491,45.05280542,168.85,168.76,1.26351861]
[1641324280693,42.05280542,168.85,168.76,1.26351861]
[1641324281094,2.91398758,168.83,168.75,20.98167545]
[1641324281296,36.31580542,168.83,168.75,20.98167545]
[1641324282095,33.40181784,168.81,168.75,20.98167545]
[1641324282996,33.40181784,168.81,168.75,24.98167545]
[1641324283396,33.40181784,168.83,168.78,4.0]
[1641324283598,33.40181784,168.83,168.78,8.817]
[1641324283998,46.87341958,168.86,168.79,1.26477621]
[1641324284700,33.40181784,168.83,168.76,1.26477621]
[1641324286299,33.40181784,168.84,168.76,1.26477621]
[1641324286499,33.40181784,168.84,168.76,7.23277621]
[1641324287201,36.40181784,168.84,168.76,7.23277621]
[1641324287601,27.66479,168.82,168.75,20.98167545]
[1641324288502,2.91398758,168.81,168.75,20.98167545]
[1641324288702,49.87341958,168.81,168.7,27.66479]
[1641324288904,3.0,168.8,168.7,27.66479]
[1641324289404,36.31580542,168.79,168.71,1.26441615]
[1641324290607,36.31580542,168.79,168.72,4.0]
[1641324290805,33.40181784,168.8,168.72,4.0]
[1641324292210,33.40181784,168.8,168.73,1.26446033]
[1641324293011,46.87341958,168.81,168.73,1.26446033]
[1641324293812,46.87341958,168.81,168.72,4.0]
[1641324294013,13.47160174,168.81,168.72,4.0]
[1641324295916,13.47160174,168.81,168.7,27.66479]
[1641324296215,19.67260174,168.81,168.7,27.66479]
[1641324296617,33.40181784,168.79,168.71,1.26442314]
[1641324297519,36.31580542,168.8,168.71,1.26442314]
[1641324298318,33.40181784,168.79,168.71,5.44254797]
[1641324300423,33.40181784,168.8,168.72,4.17812483]
[1641324301224,33.40181784,168.8,168.73,4.17812483]
[1641324301626,33.40181784,168.8,168.74,27.66479]
[1641324302026,46.87341958,168.82,168.75,4.17812483]
[1641324302925,46.87341958,168.82,168.76,4.17812483]
[1641324302926,12.5320012,168.8,168.76,4.17812483]
[1641324304330,13.47160174,168.82,168.78,7.0]
[1641324304527,13.47160174,168.82,168.78,12.664]
[1641324304728,1.74e-06,168.82,168.81,4.0]
[1641324305328,33.40181784,168.84,168.81,4.0]
[1641324305528,33.40181784,168.88,168.82,27.66479]
[1641324305729,33.40181784,168.88,168.82,31.82479]
[1641324308935,33.40181784,168.88,168.82,35.82479]
[1641324309535,33.40181784,168.87,168.82,35.82479]
[1641324309739,33.40181784,168.87,168.86,27.66479]
[1641324309941,14.99606614,168.9,168.86,33.00179]
[1641324310138,14.99606614,168.9,168.88,4.0]
[1641324310338,6.75606614,168.9,168.88,4.0]
[1641324310539,6.75606614,168.94,168.88,4.0]
[1641324311639,50.13210151,168.99,168.89,27.66479]
[1641324311838,3.0,168.98,168.89,90.19219]
[1641324312439,50.13210151,168.99,168.89,90.19219]
[1641324312939,50.13210151,168.98,168.89,90.19219]
[1641324313541,50.13210151,168.98,168.93,4.0]
[1641324313741,50.13210151,168.98,168.93,37.85979]
[1641324313941,50.13210151,169.01,168.93,37.85979]
[1641324315146,50.13210151,169.03,168.93,37.85979]
[1641324315642,3.0,169.02,168.93,37.85979]
[1641324316141,53.13210151,169.03,168.93,37.85979]
[1641324316542,50.13210151,169.03,168.93,37.85979]
[1641324317344,3.0,169.04,168.94,4.17812483]
[1641324317544,3.0,169.03,168.94,4.17812483]
[1641324317943,27.66479,169.05,168.93,35.84291483]
[1641324317944,3.0,169.04,168.93,35.84291483]
[1641324318143,3.0,169.03,168.93,35.84291483]
[1641324318542,7.39,169.03,168.93,31.84291483]
[1641324318944,3.0,169.02,168.93,31.84291483]
[1641324319143,7.39,169.03,168.93,31.84291483]
[1641324319343,3.0,169.01,168.93,31.84291483]
[1641324319743,3.0,168.99,168.93,4.17812483]
[1641324320144,3.0,168.99,168.89,90.19219]
[1641324320344,3.0,169.0,168.89,90.19219]
[1641324320544,3.0,168.99,168.89,90.19219]
[1641324322347,27.66479,169.01,168.89,90.19219]
[1641324322547,27.66479,169.01,168.91,4.0]
[1641324323149,27.66479,169.01,168.94,4.0]
[1641324323350,3.0,169.03,168.94,8.78]
[1641324323550,3.0,169.01,168.95,4.17812483]
[1641324323750,27.66479,168.99,168.89,90.19219]
[1641324324353,3.0,169.02,168.89,90.19219]
[1641324325753,27.66479,169.01,168.89,90.19219]
[1641324326655,3.0,168.99,168.89,90.19219]
[1641324327453,3.0,168.98,168.89,27.66479]
[1641324327753,3.0,168.97,168.89,27.66479]
[1641324328354,30.66479,168.98,168.89,27.66479]
[1641324328554,30.66479,168.98,168.89,34.09279]
[1641324328954,9.74883179,168.97,168.89,34.09279]
[1641324330355,12.74883179,168.97,168.89,34.09279]
[1641324330555,12.74883179,168.97,168.85,65.2353]
[1641324330556,3.0,168.96,168.85,65.2353]
[1641324330757,3.0,168.94,168.85,65.2353]
[1641324330959,3.0,168.93,168.85,65.2353]
[1641324331661,30.66479,168.93,168.85,65.2353]
[1641324333061,3.0,168.92,168.85,65.2353]
[1641324333559,64.06009646,168.98,168.85,65.2353]
[1641324333761,3.0,168.97,168.85,92.90009]
[1641324333961,3.0,168.9,168.82,27.66479]
[1641324334163,3.0,168.89,168.82,27.66479]
[1641324335162,3.0,168.89,168.74,65.394]
[1641324335362,3.0,168.89,168.77,60.7487]
[1641324335562,3.0,168.88,168.77,60.7487]
[1641324335762,30.66479,168.88,168.78,40.1329453]
[1641324336363,3.0,168.87,168.78,40.1329453]
[1641324337164,3.0,168.87,168.78,27.66479]
[1641324337865,30.66479,168.88,168.78,27.66479]
[1641324338065,30.66479,168.88,168.78,32.24379]
[1641324339165,3.0,168.86,168.78,32.24379]
[1641324339367,30.66479,168.88,168.78,27.66479]
[1641324339765,27.66479,168.85,168.78,27.66479]
[1641324340168,30.66479,168.85,168.78,27.66479]
[1641324340369,3.0,168.84,168.78,27.66479]
[1641324340767,3.0,168.83,168.78,27.66479]
[1641324340966,4.995,168.83,168.78,27.66479]
[1641324341269,3.0,168.82,168.78,27.66479]
[1641324341467,4.995,168.83,168.74,12.4681553]
[1641324341667,27.66479,168.81,168.74,12.4681553]
[1641324342067,27.66479,168.81,168.73,27.66479]
[1641324343368,20.98137618,168.81,168.73,27.66479]
[1641324343669,3.0,168.79,168.73,27.66479]
[1641324345269,20.98137618,168.81,168.73,27.66479]
[1641324345770,2.65612585,168.78,168.73,27.66479]
[1641324346472,20.98137618,168.81,168.74,1.50281422]
[1641324347074,20.98137618,168.81,168.73,27.66479]
[1641324347373,2.65538557,168.8,168.73,27.66479]
[1641324348474,12.4681553,168.83,168.73,27.66479]
[1641324348674,3.0,168.83,168.74,1.5027892]
[1641324349277,3.0,168.81,168.73,27.66479]
[1641324349677,3.0,168.78,168.7,27.66479]
[1641324349877,27.66479,168.77,168.7,27.66479]
[1641324350076,27.66479,168.77,168.74,1.50968604]
[1641324351278,2.65541389,168.76,168.71,1.50968604]
[1641324351679,8.41141389,168.76,168.71,1.50968604]
[1641324351881,3.0,168.75,168.71,8.604e-05]
[1641324352180,8.41141389,168.76,168.71,8.604e-05]
[1641324353483,12.4681553,168.75,168.67,85.67630629]
[1641324353682,12.4681553,168.75,168.7,4.0]
[1641324353884,12.4681553,168.75,168.71,27.66479]
[1641324354686,12.4681553,168.79,168.72,12.4681553]
[1641324355586,12.4681553,168.8,168.72,19.24350629]
[1641324358290,12.4681553,168.78,168.71,27.66479]
[1641324360191,9.9373344,168.8,168.72,19.24312076]
[1641324360192,12.4681553,168.79,168.72,19.24312076]
[1641324360390,12.4681553,168.79,168.72,24.74612076]
[1641324361490,15.4681553,168.79,168.72,24.74612076]
[1641324361691,15.4681553,168.79,168.72,19.24312076]
[1641324361890,27.66479,168.78,168.72,19.24312076]
[1641324362092,27.66479,168.78,168.66,27.66479]
[1641324362290,93.33699,168.78,168.66,27.66479]
[1641324362493,96.33699,168.78,168.66,27.66479]
[1641324362691,3.0,168.76,168.66,27.66479]
[1641324362894,8.244,168.76,168.66,27.66479]
[1641324363292,3.0,168.75,168.66,27.66479]
[1641324363892,12.4681553,168.74,168.67,19.24326631]
[1641324365195,12.4681553,168.74,168.66,12.4681553]
[1641324366597,17.9281553,168.75,168.67,12.4681553]
[1641324367297,15.4681553,168.73,168.65,19.24326631]
[1641324367497,3.0,168.71,168.65,19.24326631]
[1641324367698,3.0,168.69,168.65,19.24326631]
[1641324367898,27.66479,168.68,168.65,19.24326631]
[1641324368297,30.66479,168.68,168.65,19.24326631]
[1641324368898,27.66479,168.68,168.65,19.24326631]
[1641324369298,27.66479,168.68,168.64,12.4681553]
[1641324369507,3.0,168.7,168.64,12.4681553]
[1641324369698,3.0,168.69,168.64,12.4681553]
[1641324370101,27.66479,168.68,168.64,12.4681553]
[1641324371200,12.4681553,168.71,168.64,12.4681553]
[1641324371801,15.4681553,168.72,168.64,12.4681553]
[1641324372001,27.66479,168.67,168.64,12.4681553]
[1641324374802,27.66479,168.7,168.64,12.4681553]
[1641324375003,27.66479,168.7,168.64,19.2751553]
[1641324376102,27.66479,168.7,168.64,6.807]
[1641324376303,27.66479,168.7,168.63,12.4681553]
[1641324378006,27.66479,168.7,168.65,12.4681553]
[1641324380013,27.66479,168.7,168.64,12.4681553]
[1641324380909,27.66479,168.7,168.63,19.24326631]
[1641324381709,12.4681553,168.71,168.63,19.24326631]
[1641324382110,12.4681553,168.72,168.64,12.4681553]
[1641324382312,12.4681553,168.72,168.64,17.6501553]
[1641324384315,4.1796689,168.7,168.66,12.4681553]
[1641324384513,12.4681553,168.73,168.66,12.4681553]
[1641324384714,12.4681553,168.73,168.67,3.0]
[1641324385115,12.4681553,168.77,168.69,12.4681553]
[1641324385316,12.4681553,168.77,168.69,17.8851553]
[1641324386016,12.4681553,168.78,168.7,12.4681553]
[1641324386216,27.66479,168.77,168.7,12.4681553]
[1641324386817,43.1329453,168.77,168.7,12.4681553]
[1641324387015,40.1329453,168.77,168.7,12.4681553]
[1641324387417,12.4681553,168.77,168.7,12.4681553]
[1641324388319,12.4681553,168.77,168.71,27.66479]
[1641324388518,12.4681553,168.78,168.71,27.66479]
[1641324388719,12.4681553,168.78,168.7,12.4681553]
[1641324388922,17.9391553,168.78,168.7,12.4681553]
[1641324389221,12.4681553,168.77,168.69,12.4681553]
[1641324390123,12.4681553,168.77,168.7,12.4681553]
[1641324390325,12.4681553,168.77,168.7,45.8549453]
[1641324390723,12.4681553,168.77,168.7,18.1901553]
[1641324390924,3.0,168.73,168.68,6.77511101]
[1641324391125,3.0,168.71,168.68,44.26370053]
[1641324391324,4.415,168.73,168.68,44.26370053]
[1641324391924,4.415,168.73,168.61,3.0]
[1641324392125,33.39530646,168.75,168.61,3.0]
[1641324392324,61.06009646,168.75,168.64,27.66479]
[1641324392926,61.06009646,168.75,168.66,3.0]
[1641324393224,12.59707937,168.74,168.65,66.19332359]
[1641324393625,12.59707937,168.74,168.65,63.19332359]
[1641324393825,12.59707937,168.74,168.66,1.42132359]
[1641324394426,55.32958,168.67,168.66,1.42132359]
[1641324394624,60.21558,168.67,168.62,34.81663005]
[1641324394824,63.21558,168.67,168.62,1.42132359]
[1641324395024,60.21558,168.67,168.62,1.42132359]
[1641324395924,12.59707937,168.66,168.57,60.69692359]
[1641324396325,12.59707937,168.66,168.61,3.0]
[1641324397227,27.66479,168.71,168.62,1.42132359]
[1641324397228,2.75804933,168.7,168.62,1.42132359]
[1641324397930,12.90176429,168.7,168.61,4.42132359]
[1641324398128,12.90176429,168.7,168.63,3.0]
[1641324398528,12.90176429,168.7,168.61,4.42132359]
[1641324398728,2.75804933,168.7,168.64,1.42132359]
[1641324400130,2.75804933,168.7,168.61,1.42132359]
[1641324402335,2.75804933,168.7,168.61,4.42132359]
[1641324402734,8.25204933,168.7,168.61,4.42132359]
[1641324403737,8.25204933,168.7,168.61,1.42132359]
[1641324403937,2.75804933,168.69,168.62,1.42132359]
[1641324404537,15.63867148,168.7,168.62,1.42132359]
[1641324404737,15.63867148,168.7,168.61,1.42132359]
[1641324405438,2.75947038,168.69,168.6,55.32958]
[1641324405638,3.0,168.67,168.6,55.32958]
[1641324406040,3.0,168.67,168.61,1.42096513]
[1641324406338,3.0,168.64,168.61,1.42096513]
[1641324406542,27.66479,168.62,168.61,1.42096513]
[1641324407042,27.66479,168.62,168.54,33.39530646]
[1641324407245,27.66479,168.62,168.53,61.06009646]
[1641324408546,27.66479,168.62,168.54,7.99763251]
[1641324408744,20.97453105,168.62,168.54,7.99763251]
[1641324409744,2.82065649,168.61,168.54,7.99763251]
[1641324411249,2.82065649,168.63,168.54,7.99763251]
[1641324411645,5.82065649,168.63,168.54,7.99763251]
[1641324412145,2.82065649,168.63,168.54,7.99763251]
[1641324412947,2.82065649,168.62,168.54,7.99763251]
[1641324413645,2.82065649,168.63,168.54,10.99763251]
[1641324413847,2.82065649,168.63,168.54,7.99763251]
[1641324414446,46.36648422,168.66,168.54,7.99763251]
[1641324414647,27.66479,168.65,168.54,7.99763251]
[1641324414847,32.22379,168.65,168.54,7.99763251]
[1641324415447,2.82065649,168.64,168.54,7.99763251]
[1641324415848,2.82065649,168.64,168.54,10.99763251]
[1641324416048,2.82065649,168.64,168.55,3.0]
[1641324416450,2.82065649,168.64,168.54,7.99763251]
[1641324416650,2.82065649,168.64,168.56,1.4209158]
[1641324417350,27.66479,168.65,168.54,3.0]
[1641324417951,27.66479,168.65,168.55,3.0]
[1641324418352,27.66479,168.65,168.54,3.0]
[1641324418955,27.66479,168.65,168.53,27.66479]
[1641324419154,27.66479,168.65,168.55,1.34670767]
[1641324419356,27.66479,168.65,168.55,67.47890767]
[1641324420054,27.66479,168.65,168.56,3.0]
[1641324420256,27.66479,168.68,168.57,3.0]
[1641324420458,27.66479,168.68,168.58,3.0]
[1641324420659,27.66479,168.68,168.61,27.66479]
[1641324420958,27.66479,168.68,168.57,4.34681052]
[1641324421359,27.66479,168.68,168.58,3.0]
[1641324421562,27.66479,168.68,168.55,63.1322]
[1641324421759,27.66479,168.68,168.58,3.0]
[1641324422059,27.66479,168.68,168.55,63.1322]
[1641324422461,27.66479,168.68,168.55,66.1322]
[1641324422660,30.66479,168.68,168.57,27.66479]
[1641324423060,27.66479,168.68,168.57,30.66479]
[1641324423962,27.66479,168.68,168.59,3.0]
[1641324425063,27.66479,168.68,168.57,27.66479]
[1641324425263,12.41204986,168.66,168.6,1.36088144]
[1641324425865,12.41204986,168.65,168.58,1.36088144]
[1641324426364,3.0,168.63,168.58,1.36088144]
[1641324426666,27.66479,168.6,168.58,1.36088144]
[1641324426864,27.66479,168.6,168.57,12.41204986]
[1641324427064,27.66479,168.6,168.56,1.36072081]
[1641324427463,30.66479,168.6,168.56,1.36072081]
[1641324427864,30.66479,168.6,168.55,12.41204986]
[1641324428064,12.41204986,168.57,168.53,27.66479]
[1641324428265,17.56704986,168.57,168.53,27.66479]
[1641324428865,5.155,168.57,168.53,27.66479]
[1641324429465,5.155,168.57,168.5,12.41204986]
[1641324429765,8.155,168.57,168.5,12.41204986]
[1641324429965,5.155,168.57,168.5,12.41204986]
[1641324430165,17.56704986,168.57,168.49,40.07683986]
[1641324430765,15.41204986,168.56,168.49,27.66479]
[1641324430966,12.41204986,168.56,168.49,27.66479]